[Event "Titled Tuesday Blitz July 18 Early 2023"]
[White "Aaditya Dhingra"]
[Black "MFatigue"]
[WhiteFideId "25678191"]
[WhiteElo "2660"]
[BlackElo "2523"]
[Result "1-0"]
[Round "4"]
[TimeControl "180+2"]
[Date "2023.07.18"]
[WhiteClock "0:00:06"]
[BlackClock "0:00:04"]
[Board "79"]

1. d4 {[%clk 0:03:00]}  d5 {[%clk 0:02:59]} 2. Bf4 {[%clk 0:02:59]}  Nf6 {[%clk 0:02:59]} 3. e3 {[%clk 0:02:59]}  e6 {[%clk 0:03:00]} 4. Nd2 {[%clk 0:03:00]}  c5 {[%clk 0:03:00]} 5. Ngf3 {[%clk 0:02:59]}  Bd6 {[%clk 0:03:01]} 6. Bg3 {[%clk 0:02:57]}  O-O {[%clk 0:03:01]} 7. c3 {[%clk 0:02:57]}  Qc7 {[%clk 0:03:02]} 8. Bd3 {[%clk 0:02:57]}  Nbd7 {[%clk 0:03:01]} 9. O-O {[%clk 0:02:56]}  e5 {[%clk 0:03:01]} 10. dxe5 {[%clk 0:02:57]}  Nxe5 {[%clk 0:03:02]} 11. Nxe5 {[%clk 0:02:56]}  Bxe5 {[%clk 0:03:03]} 12. Nf3 {[%clk 0:02:56]}  Bd6 {[%clk 0:03:03]} 13. c4 {[%clk 0:02:54]}  Bxg3 {[%clk 0:02:54]} 14. hxg3 {[%clk 0:02:53]}  dxc4 {[%clk 0:02:45]} 15. Bxc4 {[%clk 0:02:52]}  Bg4 {[%clk 0:02:46]} 16. Qc2 {[%clk 0:02:51]}  Bxf3 {[%clk 0:02:42]} 17. gxf3 {[%clk 0:02:49]}  Rfd8 {[%clk 0:02:36]} 18. Kg2 {[%clk 0:02:45]}  a6 {[%clk 0:02:35]} 19. a4 {[%clk 0:02:41]}  b6 {[%clk 0:02:35]} 20. Rh1 {[%clk 0:02:37]}  h6 {[%clk 0:02:35]} 21. g4 {[%clk 0:02:34]}  Qc6 {[%clk 0:02:15]} 22. g5 {[%clk 0:01:47]}  hxg5 {[%clk 0:02:16]} 23. Qf5 {[%clk 0:01:46]}  g4 {[%clk 0:02:07]} 24. Be2 {[%clk 0:01:12]}  Rd5 {[%clk 0:01:51]} 25. Qf4 {[%clk 0:01:09]}  Qd6 {[%clk 0:01:43]} 26. Qxd6 {[%clk 0:01:06]}  Rxd6 {[%clk 0:01:44]} 27. fxg4 {[%clk 0:01:07]}  Rd2 {[%clk 0:01:41]} 28. Bf3 {[%clk 0:01:07]}  Rb8 {[%clk 0:01:35]} 29. Rab1 {[%clk 0:01:03]}  b5 {[%clk 0:01:23]} 30. Rhc1 {[%clk 0:00:58]}  c4 {[%clk 0:01:22]} 31. b3 {[%clk 0:00:57]}  cxb3 {[%clk 0:01:00]} 32. Rxb3 {[%clk 0:00:50]}  b4 {[%clk 0:00:59]} 33. Rc6 {[%clk 0:00:45]}  a5 {[%clk 0:00:47]} 34. Rc5 {[%clk 0:00:44]}  Ra2 {[%clk 0:00:43]} 35. Rxa5 {[%clk 0:00:43]}  Ra3 {[%clk 0:00:44]} 36. Rb2 {[%clk 0:00:35]}  b3 {[%clk 0:00:36]} 37. Rb5 {[%clk 0:00:34]}  Rxb5 {[%clk 0:00:35]} 38. axb5 {[%clk 0:00:33]}  Nd7 {[%clk 0:00:35]} 39. Bd5 {[%clk 0:00:31]}  Nb6 {[%clk 0:00:33]} 40. Rxb3 {[%clk 0:00:28]}  Ra4 {[%clk 0:00:26]} 41. Bf3 {[%clk 0:00:26]}  Kf8 {[%clk 0:00:26]} 42. Rc3 {[%clk 0:00:23]}  Rb4 {[%clk 0:00:25]} 43. Be2 {[%clk 0:00:24]}  Nd5 {[%clk 0:00:20]} 44. Rc5 {[%clk 0:00:21]}  Nf6 {[%clk 0:00:19]} 45. g5 {[%clk 0:00:18]}  Nd7 {[%clk 0:00:19]} 46. Rc6 {[%clk 0:00:17]}  Ke7 {[%clk 0:00:19]} 47. f4 {[%clk 0:00:15]}  f6 {[%clk 0:00:18]} 48. gxf6+ {[%clk 0:00:13]}  gxf6 {[%clk 0:00:19]} 49. Kf3 {[%clk 0:00:13]}  Nb8 {[%clk 0:00:17]} 50. Rc4 {[%clk 0:00:13]}  Rb2 {[%clk 0:00:16]} 51. Re4+ {[%clk 0:00:13]}  Kd6 {[%clk 0:00:16]} 52. Bc4 {[%clk 0:00:13]}  Nd7 {[%clk 0:00:16]} 53. Re6+ {[%clk 0:00:12]}  Kc5 {[%clk 0:00:17]} 54. Bd3 {[%clk 0:00:13]}  Rd2 {[%clk 0:00:16]} 55. Rc6+ {[%clk 0:00:13]}  Kb4 {[%clk 0:00:13]} 56. Be2 {[%clk 0:00:13]}  Nc5 {[%clk 0:00:11]} 57. Rxf6 {[%clk 0:00:13]}  Rd7 {[%clk 0:00:08]} 58. b6 {[%clk 0:00:12]}  Rb7 {[%clk 0:00:08]} 59. e4 {[%clk 0:00:10]}  Na4 {[%clk 0:00:07]} 60. e5 {[%clk 0:00:10]}  Nxb6 {[%clk 0:00:07]} 61. Ke4 {[%clk 0:00:10]}  Kc5 {[%clk 0:00:07]} 62. f5 {[%clk 0:00:09]}  Nd5 {[%clk 0:00:06]} 63. Rd6 {[%clk 0:00:09]}  Rb4+ {[%clk 0:00:07]} 64. Kd3 {[%clk 0:00:05]}  Nf4+ {[%clk 0:00:06]} 65. Ke3 {[%clk 0:00:05]}  Nxe2 {[%clk 0:00:06]} 66. Kxe2 {[%clk 0:00:04]}  Re4+ {[%clk 0:00:06]} 67. Kf3 {[%clk 0:00:04]}  Rxe5 {[%clk 0:00:07]} 68. Rf6 {[%clk 0:00:04]}  Kd5 {[%clk 0:00:06]} 69. Kf4 {[%clk 0:00:05]}  Re1 {[%clk 0:00:07]} 70. Ra6 {[%clk 0:00:05]}  Rf1+ {[%clk 0:00:07]} 71. Kg5 {[%clk 0:00:05]}  Rg1+ {[%clk 0:00:08]} 72. Kf6 {[%clk 0:00:05]}  Rg2 {[%clk 0:00:06]} 73. Ra5+ {[%clk 0:00:05]}  Kd6 {[%clk 0:00:06]} 74. Kf7 {[%clk 0:00:04]}  Rf2 {[%clk 0:00:06]} 75. f6 {[%clk 0:00:04]}  Kd7 {[%clk 0:00:07]} 76. Ra7+ {[%clk 0:00:04]}  Kd6 {[%clk 0:00:07]} 77. Kg7 {[%clk 0:00:04]}  Rg2+ {[%clk 0:00:07]} 78. Kf8 {[%clk 0:00:05]}  Rf2 {[%clk 0:00:07]} 79. f7 {[%clk 0:00:05]}  Rf1 {[%clk 0:00:06]} 80. Re7 {[%clk 0:00:05]}  Rg1 {[%clk 0:00:06]} 81. Ke8 {[%clk 0:00:05]}  Ra1 {[%clk 0:00:05]} 82. Rd7+ {[%clk 0:00:05]}  Ke6 {[%clk 0:00:04]} 83. f8=Q {[%clk 0:00:05]}  Ra8+ {[%clk 0:00:04]} 84. Rd8 {[%clk 0:00:05]}  Rxd8+ {[%clk 0:00:04]} 85. Kxd8 {[%clk 0:00:06]} 1-0


[Site "https://www.chess.com"]

[Event "Titled Tuesday Blitz July 18 Early 2023"]
[White "Horak, Martin"]
[Black "benny_aizenberg"]
[WhiteFideId "367095"]
[WhiteElo "2517"]
[BlackElo "2652"]
[Result "0-1"]
[Round "4"]
[TimeControl "180+2"]
[Date "2023.07.18"]
[WhiteClock "0:00:00"]
[BlackClock "0:00:01"]
[Board "81"]

1. e4 {[%clk 0:03:00]}  e5 {[%clk 0:02:54]} 2. Nc3 {[%clk 0:03:00]}  Nf6 {[%clk 0:02:52]} 3. Bc4 {[%clk 0:02:59]}  c6 {[%clk 0:02:48]} 4. d3 {[%clk 0:02:07]}  d5 {[%clk 0:02:47]} 5. Bb3 {[%clk 0:02:08]}  Bc5 {[%clk 0:02:29]} 6. Nf3 {[%clk 0:02:06]}  O-O {[%clk 0:02:08]} 7. O-O {[%clk 0:02:06]}  Bg4 {[%clk 0:02:02]} 8. h3 {[%clk 0:02:03]}  Bxf3 {[%clk 0:02:00]} 9. Qxf3 {[%clk 0:02:03]}  dxe4 {[%clk 0:01:50]} 10. dxe4 {[%clk 0:02:00]}  h6 {[%clk 0:01:49]} 11. Rd1 {[%clk 0:01:57]}  Qe7 {[%clk 0:01:49]} 12. Ne2 {[%clk 0:01:56]}  Kh7 {[%clk 0:01:42]} 13. Ng3 {[%clk 0:01:47]}  g6 {[%clk 0:01:41]} 14. h4 {[%clk 0:01:36]}  Nbd7 {[%clk 0:01:28]} 15. h5 {[%clk 0:01:35]}  Rad8 {[%clk 0:01:24]} 16. Bd2 {[%clk 0:01:27]}  Bb6 {[%clk 0:01:12]} 17. a4 {[%clk 0:01:01]}  a5 {[%clk 0:01:11]} 18. Bc4 {[%clk 0:01:00]}  Rfe8 {[%clk 0:00:55]} 19. Ra3 {[%clk 0:00:59]}  Nf8 {[%clk 0:00:52]} 20. Rb3 {[%clk 0:00:53]}  Bc5 {[%clk 0:00:42]} 21. Bxa5 {[%clk 0:00:50]}  Rxd1+ {[%clk 0:00:41]} 22. Qxd1 {[%clk 0:00:50]}  Ra8 {[%clk 0:00:39]} 23. Qd2 {[%clk 0:00:44]}  Ng4 {[%clk 0:00:33]} 24. Rf3 {[%clk 0:00:35]}  Ne6 {[%clk 0:00:30]} 25. Bxe6 {[%clk 0:00:23]}  Qxe6 {[%clk 0:00:31]} 26. Bb4 {[%clk 0:00:22]}  Bd4 {[%clk 0:00:19]} 27. b3 {[%clk 0:00:21]}  Rd8 {[%clk 0:00:16]} 28. Qe2 {[%clk 0:00:20]}  Bb6 {[%clk 0:00:15]} 29. Be1 {[%clk 0:00:19]}  Rd4 {[%clk 0:00:13]} 30. Rd3 {[%clk 0:00:18]}  Qd7 {[%clk 0:00:11]} 31. Rxd4 {[%clk 0:00:16]}  exd4 {[%clk 0:00:10]} 32. Qd3 {[%clk 0:00:13]}  Ne5 {[%clk 0:00:11]} 33. Qe2 {[%clk 0:00:12]}  d3 {[%clk 0:00:10]} 34. cxd3 {[%clk 0:00:12]}  Nxd3 {[%clk 0:00:11]} 35. Bc3 {[%clk 0:00:10]}  Bxf2+ {[%clk 0:00:08]} 36. Kh2 {[%clk 0:00:10]}  Qd6 {[%clk 0:00:07]} 37. e5 {[%clk 0:00:09]}  Qd5 {[%clk 0:00:07]} 38. Ne4 {[%clk 0:00:08]}  Bh4 {[%clk 0:00:05]} 39. Qf3 {[%clk 0:00:07]}  Nxe5 {[%clk 0:00:03]} 40. hxg6+ {[%clk 0:00:03]}  fxg6 {[%clk 0:00:02]} 41. Bxe5 {[%clk 0:00:03]}  Qxe5+ {[%clk 0:00:02]} 42. g3 {[%clk 0:00:02]}  Be7 {[%clk 0:00:02]} 43. Kg2 {[%clk 0:00:02]}  Qg7 {[%clk 0:00:03]} 44. a5 {[%clk 0:00:01]}  h5 {[%clk 0:00:03]} 45. Qf4 {[%clk 0:00:01]}  g5 {[%clk 0:00:02]} 46. Qc7 {[%clk 0:00:00]}  Bb4 {[%clk 0:00:01]} 0-1


[Site "https://www.chess.com"]

[Event "Titled Tuesday Blitz July 18 Early 2023"]
[White "Postlmayer, Jakob"]
[Black "Tica, Sven"]
[WhiteFideId "1643622"]
[BlackFideId "14526948"]
[WhiteElo "2510"]
[BlackElo "2649"]
[Result "0-1"]
[Round "4"]
[TimeControl "180+2"]
[Date "2023.07.18"]
[WhiteClock "0:01:48"]
[BlackClock "0:01:51"]
[Board "82"]

1. d4 {[%clk 0:03:00]}  g6 {[%clk 0:02:58]} 2. e4 {[%clk 0:03:00]}  Bg7 {[%clk 0:02:59]} 3. Nc3 {[%clk 0:03:00]}  a6 {[%clk 0:02:59]} 4. Be3 {[%clk 0:03:00]}  b5 {[%clk 0:02:59]} 5. a3 {[%clk 0:02:58]}  Bb7 {[%clk 0:02:59]} 6. f4 {[%clk 0:02:56]}  d6 {[%clk 0:02:58]} 7. Be2 {[%clk 0:02:55]}  Nd7 {[%clk 0:02:58]} 8. e5 {[%clk 0:02:48]}  Nh6 {[%clk 0:02:50]} 9. Bf3 {[%clk 0:02:48]}  Bxf3 {[%clk 0:02:49]} 10. Nxf3 {[%clk 0:02:48]}  Nf5 {[%clk 0:02:49]} 11. Bf2 {[%clk 0:02:48]}  h5 {[%clk 0:02:48]} 12. Qe2 {[%clk 0:02:45]}  e6 {[%clk 0:02:47]} 13. O-O-O {[%clk 0:02:38]}  d5 {[%clk 0:02:33]} 14. g3 {[%clk 0:02:28]}  Qe7 {[%clk 0:02:30]} 15. h3 {[%clk 0:02:25]}  Bh6 {[%clk 0:02:25]} 16. Kb1 {[%clk 0:02:23]}  Bg7 {[%clk 0:02:16]} 17. g4 {[%clk 0:02:21]}  hxg4 {[%clk 0:02:04]} 18. hxg4 {[%clk 0:02:22]}  Rxh1 {[%clk 0:02:05]} 19. Rxh1 {[%clk 0:02:22]}  Nh6 {[%clk 0:02:06]} 20. Bh4 {[%clk 0:02:18]}  Qf8 {[%clk 0:02:06]} 21. Ne1 {[%clk 0:02:10]}  c5 {[%clk 0:01:57]} 22. dxc5 {[%clk 0:02:08]}  Qxc5 {[%clk 0:01:58]} 23. Nd3 {[%clk 0:02:05]}  Qc4 {[%clk 0:01:55]} 24. Bg5 {[%clk 0:02:00]}  Ng8 {[%clk 0:01:52]} 25. Rh8 {[%clk 0:01:48]}  Bxh8 {[%clk 0:01:51]} 0-1


[Site "https://www.chess.com"]

[Event "Titled Tuesday Blitz July 18 Early 2023"]
[White "Shuvalova, Polina"]
[Black "Mathieu, Phileas"]
[WhiteFideId "24171760"]
[BlackFideId "36048410"]
[WhiteElo "2648"]
[BlackElo "2504"]
[Result "1-0"]
[Round "4"]
[TimeControl "180+2"]
[Date "2023.07.18"]
[WhiteClock "0:00:19"]
[BlackClock "0:00:05"]
[Board "83"]

1. e4 {[%clk 0:03:00]}  c5 {[%clk 0:02:57]} 2. Nf3 {[%clk 0:03:00]}  Nc6 {[%clk 0:02:57]} 3. c3 {[%clk 0:02:58]}  d5 {[%clk 0:02:55]} 4. exd5 {[%clk 0:02:58]}  Qxd5 {[%clk 0:02:56]} 5. d4 {[%clk 0:02:58]}  Bg4 {[%clk 0:02:56]} 6. Be2 {[%clk 0:02:58]}  cxd4 {[%clk 0:02:55]} 7. cxd4 {[%clk 0:02:56]}  e6 {[%clk 0:02:54]} 8. Nc3 {[%clk 0:02:56]}  Qa5 {[%clk 0:02:54]} 9. O-O {[%clk 0:02:56]}  Nf6 {[%clk 0:02:54]} 10. h3 {[%clk 0:02:56]}  Bh5 {[%clk 0:02:54]} 11. Be3 {[%clk 0:02:49]}  Be7 {[%clk 0:02:52]} 12. Rc1 {[%clk 0:02:49]}  O-O {[%clk 0:02:47]} 13. Qb3 {[%clk 0:02:49]}  Qb4 {[%clk 0:02:46]} 14. Qxb4 {[%clk 0:02:42]}  Nxb4 {[%clk 0:02:42]} 15. a3 {[%clk 0:02:39]}  Nbd5 {[%clk 0:02:42]} 16. g4 {[%clk 0:02:31]}  Bg6 {[%clk 0:02:40]} 17. Ne5 {[%clk 0:02:30]}  Rac8 {[%clk 0:02:35]} 18. Bf3 {[%clk 0:02:17]}  Rfd8 {[%clk 0:02:27]} 19. g5 {[%clk 0:02:05]}  Nxe3 {[%clk 0:02:20]} 20. gxf6 {[%clk 0:01:52]}  Bxa3 {[%clk 0:01:54]} 21. fxe3 {[%clk 0:01:12]}  Bxb2 {[%clk 0:01:48]} 22. Nxg6 {[%clk 0:01:12]}  hxg6 {[%clk 0:01:43]} 23. Rc2 {[%clk 0:01:08]}  Bxc3 {[%clk 0:01:14]} 24. Rfc1 {[%clk 0:01:07]}  a5 {[%clk 0:01:10]} 25. Rxc3 {[%clk 0:01:06]}  Rxc3 {[%clk 0:01:05]} 26. Rxc3 {[%clk 0:01:07]}  b5 {[%clk 0:01:01]} 27. Rc5 {[%clk 0:01:02]}  Rb8 {[%clk 0:01:00]} 28. fxg7 {[%clk 0:00:52]}  a4 {[%clk 0:00:58]} 29. Bd1 {[%clk 0:00:51]}  Kxg7 {[%clk 0:00:45]} 30. h4 {[%clk 0:00:51]}  a3 {[%clk 0:00:41]} 31. Bb3 {[%clk 0:00:50]}  b4 {[%clk 0:00:39]} 32. Kf2 {[%clk 0:00:48]}  Ra8 {[%clk 0:00:39]} 33. Rc2 {[%clk 0:00:48]}  Kf6 {[%clk 0:00:36]} 34. Kf3 {[%clk 0:00:47]}  Ra5 {[%clk 0:00:34]} 35. e4 {[%clk 0:00:46]}  Rh5 {[%clk 0:00:30]} 36. Kg4 {[%clk 0:00:46]}  Ra5 {[%clk 0:00:28]} 37. d5 {[%clk 0:00:40]}  exd5 {[%clk 0:00:29]} 38. exd5 {[%clk 0:00:40]}  Ra7 {[%clk 0:00:25]} 39. Kf4 {[%clk 0:00:35]}  Ke7 {[%clk 0:00:21]} 40. Ke5 {[%clk 0:00:34]}  f6+ {[%clk 0:00:21]} 41. Kd4 {[%clk 0:00:34]}  Kd7 {[%clk 0:00:15]} 42. Rg2 {[%clk 0:00:33]}  g5 {[%clk 0:00:12]} 43. hxg5 {[%clk 0:00:33]}  fxg5 {[%clk 0:00:13]} 44. Rxg5 {[%clk 0:00:33]}  Ra5 {[%clk 0:00:13]} 45. Rg7+ {[%clk 0:00:32]}  Kd6 {[%clk 0:00:13]} 46. Rg6+ {[%clk 0:00:33]}  Kd7 {[%clk 0:00:14]} 47. Rg2 {[%clk 0:00:29]}  Kd6 {[%clk 0:00:14]} 48. Re2 {[%clk 0:00:28]}  Kd7 {[%clk 0:00:12]} 49. Kc4 {[%clk 0:00:28]}  Kd6 {[%clk 0:00:10]} 50. Kxb4 {[%clk 0:00:27]}  Ra8 {[%clk 0:00:10]} 51. Ra2 {[%clk 0:00:25]}  Rb8+ {[%clk 0:00:10]} 52. Kc3 {[%clk 0:00:25]}  Ra8 {[%clk 0:00:09]} 53. Kd4 {[%clk 0:00:20]}  Ra6 {[%clk 0:00:06]} 54. Bc4 {[%clk 0:00:20]}  Ra4 {[%clk 0:00:05]} 55. Re2 {[%clk 0:00:21]}  Kd7 {[%clk 0:00:05]} 56. Kc5 {[%clk 0:00:20]}  Ra5+ {[%clk 0:00:05]} 57. Kb4 {[%clk 0:00:19]}  Ra8 {[%clk 0:00:05]} 58. Ra2 {[%clk 0:00:19]}  Kd6 {[%clk 0:00:05]} 59. Rxa3 {[%clk 0:00:19]}  Rb8+ {[%clk 0:00:06]} 60. Kc3 {[%clk 0:00:19]}  Rh8 {[%clk 0:00:07]} 61. Ra6+ {[%clk 0:00:19]}  Kd7 {[%clk 0:00:07]} 62. Kd4 {[%clk 0:00:19]}  Rh6 {[%clk 0:00:05]} 63. Rxh6 {[%clk 0:00:19]} 1-0


[Site "https://www.chess.com"]

[Event "Titled Tuesday Blitz July 18 Early 2023"]
[White "Chernyavsky, Alexander"]
[Black "Komov, Roman"]
[WhiteFideId "24131156"]
[BlackFideId "24175714"]
[WhiteElo "2473"]
[BlackElo "2642"]
[Result "0-1"]
[Round "4"]
[TimeControl "180+2"]
[Date "2023.07.18"]
[WhiteClock "0:00:14"]
[BlackClock "0:01:35"]
[Board "85"]

1. d4 {[%clk 0:03:00]}  Nf6 {[%clk 0:03:00]} 2. c4 {[%clk 0:02:59]}  e6 {[%clk 0:03:00]} 3. Nc3 {[%clk 0:03:00]}  Bb4 {[%clk 0:03:00]} 4. e3 {[%clk 0:03:00]}  O-O {[%clk 0:02:59]} 5. Ne2 {[%clk 0:03:00]}  Re8 {[%clk 0:02:59]} 6. a3 {[%clk 0:03:00]}  Bf8 {[%clk 0:02:59]} 7. e4 {[%clk 0:02:58]}  d5 {[%clk 0:02:57]} 8. e5 {[%clk 0:02:57]}  Nfd7 {[%clk 0:02:58]} 9. cxd5 {[%clk 0:02:56]}  exd5 {[%clk 0:02:59]} 10. f4 {[%clk 0:02:32]}  c5 {[%clk 0:02:59]} 11. Be3 {[%clk 0:02:31]}  Nc6 {[%clk 0:02:59]} 12. Nxd5 {[%clk 0:02:10]}  cxd4 {[%clk 0:02:49]} 13. Nxd4 {[%clk 0:02:10]}  Ndxe5 {[%clk 0:02:42]} 14. Nxc6 {[%clk 0:02:02]}  bxc6 {[%clk 0:02:30]} 15. fxe5 {[%clk 0:01:54]}  cxd5 {[%clk 0:02:30]} 16. Qd4 {[%clk 0:01:13]}  f6 {[%clk 0:02:01]} 17. exf6 {[%clk 0:01:00]}  Re4 {[%clk 0:01:56]} 18. Qd3 {[%clk 0:00:26]}  Bc5 {[%clk 0:01:52]} 19. f7+ {[%clk 0:00:24]}  Kxf7 {[%clk 0:01:50]} 20. O-O-O {[%clk 0:00:25]}  Bxe3+ {[%clk 0:01:42]} 21. Kb1 {[%clk 0:00:25]}  Bf5 {[%clk 0:01:42]} 22. g4 {[%clk 0:00:20]}  Bg6 {[%clk 0:01:38]} 23. Bg2 {[%clk 0:00:20]}  Rd4 {[%clk 0:01:35]} 24. Rhf1+ {[%clk 0:00:18]}  Kg8 {[%clk 0:01:35]} 25. Qxg6 {[%clk 0:00:14]}  hxg6 {[%clk 0:01:35]} 0-1


[Site "https://www.chess.com"]

[Event "Titled Tuesday Blitz July 18 Early 2023"]
[White "Sathish, Pranav"]
[Black "Zomorrodian, Eilia"]
[WhiteFideId "30967538"]
[BlackFideId "12551805"]
[WhiteElo "2459"]
[BlackElo "2640"]
[Result "1-0"]
[Round "4"]
[TimeControl "180+2"]
[Date "2023.07.18"]
[WhiteClock "0:00:21"]
[BlackClock "0:00:08"]
[Board "86"]

1. Nf3 {[%clk 0:03:00]}  Nf6 {[%clk 0:03:00]} 2. b3 {[%clk 0:03:00]}  g6 {[%clk 0:03:00]} 3. Bb2 {[%clk 0:02:58]}  Bg7 {[%clk 0:03:01]} 4. g3 {[%clk 0:02:58]}  O-O {[%clk 0:03:01]} 5. Bg2 {[%clk 0:02:57]}  d6 {[%clk 0:02:58]} 6. d4 {[%clk 0:02:57]}  c5 {[%clk 0:02:57]} 7. c4 {[%clk 0:02:55]}  Nc6 {[%clk 0:02:57]} 8. d5 {[%clk 0:02:54]}  Na5 {[%clk 0:02:57]} 9. Nc3 {[%clk 0:02:50]}  Bf5 {[%clk 0:02:56]} 10. O-O {[%clk 0:02:49]}  a6 {[%clk 0:02:54]} 11. a4 {[%clk 0:02:43]}  Ne4 {[%clk 0:02:52]} 12. Rc1 {[%clk 0:02:25]}  Qb6 {[%clk 0:02:45]} 13. Nh4 {[%clk 0:02:23]}  Nxc3 {[%clk 0:01:52]} 14. Bxc3 {[%clk 0:02:23]}  Bxc3 {[%clk 0:01:10]} 15. Rxc3 {[%clk 0:02:18]}  Bd7 {[%clk 0:01:10]} 16. Nf3 {[%clk 0:02:02]}  Qb4 {[%clk 0:01:10]} 17. Qc2 {[%clk 0:02:01]}  b5 {[%clk 0:01:11]} 18. axb5 {[%clk 0:01:59]}  Bf5 {[%clk 0:01:02]} 19. Qb2 {[%clk 0:01:49]}  axb5 {[%clk 0:01:02]} 20. Nd2 {[%clk 0:01:47]}  Rfb8 {[%clk 0:00:56]} 21. e4 {[%clk 0:01:42]}  Bd7 {[%clk 0:00:55]} 22. cxb5 {[%clk 0:01:39]}  Rxb5 {[%clk 0:00:51]} 23. Ra1 {[%clk 0:01:31]}  Rab8 {[%clk 0:00:52]} 24. Bf1 {[%clk 0:01:30]}  R5b7 {[%clk 0:00:49]} 25. Qc2 {[%clk 0:01:17]}  Bb5 {[%clk 0:00:36]} 26. Nc4 {[%clk 0:01:00]}  Bxc4 {[%clk 0:00:30]} 27. bxc4 {[%clk 0:00:59]}  Rb6 {[%clk 0:00:16]} 28. Ra4 {[%clk 0:00:57]}  Qxa4 {[%clk 0:00:10]} 29. Qxa4 {[%clk 0:00:56]}  Nb3 {[%clk 0:00:11]} 30. Qd7 {[%clk 0:00:46]}  R6b7 {[%clk 0:00:10]} 31. Rxb3 {[%clk 0:00:42]}  Rxb3 {[%clk 0:00:10]} 32. Qxe7 {[%clk 0:00:42]}  Rb1 {[%clk 0:00:09]} 33. Qxd6 {[%clk 0:00:40]}  Ra8 {[%clk 0:00:10]} 34. Kg2 {[%clk 0:00:38]}  Raa1 {[%clk 0:00:08]} 35. Bd3 {[%clk 0:00:33]}  Rd1 {[%clk 0:00:09]} 36. Be2 {[%clk 0:00:26]}  Re1 {[%clk 0:00:06]} 37. Bf3 {[%clk 0:00:25]}  Ra2 {[%clk 0:00:05]} 38. Qxc5 {[%clk 0:00:23]}  Rc1 {[%clk 0:00:05]} 39. e5 {[%clk 0:00:19]}  Rcc2 {[%clk 0:00:05]} 40. e6 {[%clk 0:00:19]}  fxe6 {[%clk 0:00:05]} 41. dxe6 {[%clk 0:00:19]}  Kg7 {[%clk 0:00:06]} 42. Qe5+ {[%clk 0:00:18]}  Kh6 {[%clk 0:00:03]} 43. Qe3+ {[%clk 0:00:18]}  Kg7 {[%clk 0:00:02]} 44. e7 {[%clk 0:00:18]}  Rxf2+ {[%clk 0:00:01]} 45. Qxf2 {[%clk 0:00:18]}  Rxf2+ {[%clk 0:00:02]} 46. Kxf2 {[%clk 0:00:19]}  Kf7 {[%clk 0:00:03]} 47. c5 {[%clk 0:00:19]}  Kxe7 {[%clk 0:00:03]} 48. c6 {[%clk 0:00:20]}  Kd6 {[%clk 0:00:04]} 49. Ke3 {[%clk 0:00:21]}  Kc7 {[%clk 0:00:05]} 50. Kf4 {[%clk 0:00:21]}  Kd6 {[%clk 0:00:06]} 51. Kg5 {[%clk 0:00:21]}  Kc7 {[%clk 0:00:06]} 52. Kh6 {[%clk 0:00:22]}  Kd6 {[%clk 0:00:06]} 53. Kxh7 {[%clk 0:00:22]}  g5 {[%clk 0:00:07]} 54. Kg6 {[%clk 0:00:21]}  Ke5 {[%clk 0:00:08]} 1-0


[Site "https://www.chess.com"]

[Event "Titled Tuesday Blitz July 18 Early 2023"]
[White "Herman, Daniel"]
[Black "Schnaider, Ilan"]
[WhiteFideId "30935008"]
[BlackFideId "169013"]
[WhiteElo "2435"]
[BlackElo "2638"]
[Result "1-0"]
[Round "4"]
[TimeControl "180+2"]
[Date "2023.07.18"]
[WhiteClock "0:00:11"]
[BlackClock "0:00:01"]
[Board "88"]

1. e4 {[%clk 0:03:00]}  c5 {[%clk 0:02:59]} 2. Nf3 {[%clk 0:03:00]}  d6 {[%clk 0:03:00]} 3. d4 {[%clk 0:03:00]}  cxd4 {[%clk 0:03:01]} 4. Nxd4 {[%clk 0:03:00]}  Nf6 {[%clk 0:03:01]} 5. Nc3 {[%clk 0:03:01]}  a6 {[%clk 0:03:02]} 6. h3 {[%clk 0:03:01]}  Nc6 {[%clk 0:03:00]} 7. g4 {[%clk 0:03:00]}  g6 {[%clk 0:02:58]} 8. Be3 {[%clk 0:02:49]}  Bg7 {[%clk 0:02:58]} 9. Bg2 {[%clk 0:02:44]}  h5 {[%clk 0:02:58]} 10. g5 {[%clk 0:02:42]}  Nd7 {[%clk 0:02:59]} 11. f4 {[%clk 0:02:37]}  Qa5 {[%clk 0:02:58]} 12. Qd2 {[%clk 0:02:26]}  Nb6 {[%clk 0:02:53]} 13. Nb3 {[%clk 0:02:14]}  Qb4 {[%clk 0:02:42]} 14. a3 {[%clk 0:02:12]}  Qc4 {[%clk 0:02:40]} 15. Bxb6 {[%clk 0:02:11]}  O-O {[%clk 0:02:06]} 16. Qd3 {[%clk 0:01:57]}  Qe6 {[%clk 0:02:02]} 17. O-O-O {[%clk 0:01:53]}  a5 {[%clk 0:01:51]} 18. Nd5 {[%clk 0:01:49]}  a4 {[%clk 0:01:52]} 19. Nd4 {[%clk 0:01:45]}  Qd7 {[%clk 0:01:50]} 20. Nb5 {[%clk 0:01:40]}  Ra6 {[%clk 0:01:46]} 21. Be3 {[%clk 0:01:19]}  Ra5 {[%clk 0:01:41]} 22. h4 {[%clk 0:01:00]}  Nd8 {[%clk 0:01:33]} 23. Nbc3 {[%clk 0:00:48]}  b5 {[%clk 0:01:26]} 24. Bd4 {[%clk 0:00:45]}  e5 {[%clk 0:01:21]} 25. fxe5 {[%clk 0:00:43]}  dxe5 {[%clk 0:01:22]} 26. Bc5 {[%clk 0:00:42]}  Re8 {[%clk 0:01:20]} 27. Nb6 {[%clk 0:00:35]}  Qc6 {[%clk 0:01:15]} 28. Nxc8 {[%clk 0:00:31]}  Qxc5 {[%clk 0:01:15]} 29. Nd6 {[%clk 0:00:31]}  Rf8 {[%clk 0:01:12]} 30. Bh3 {[%clk 0:00:25]}  b4 {[%clk 0:01:10]} 31. Nd5 {[%clk 0:00:21]}  Kh8 {[%clk 0:01:00]} 32. axb4 {[%clk 0:00:20]}  Qxd6 {[%clk 0:00:55]} 33. bxa5 {[%clk 0:00:20]}  Nc6 {[%clk 0:00:55]} 34. Nb6 {[%clk 0:00:19]}  Qc5 {[%clk 0:00:51]} 35. Nd7 {[%clk 0:00:18]}  Qxa5 {[%clk 0:00:47]} 36. Nxf8 {[%clk 0:00:19]}  Bxf8 {[%clk 0:00:48]} 37. Qc3 {[%clk 0:00:19]}  Nb4 {[%clk 0:00:46]} 38. Kb1 {[%clk 0:00:18]}  a3 {[%clk 0:00:44]} 39. bxa3 {[%clk 0:00:16]}  Kh7 {[%clk 0:00:21]} 40. axb4 {[%clk 0:00:16]}  Bxb4 {[%clk 0:00:21]} 41. Rd5 {[%clk 0:00:13]}  Qb6 {[%clk 0:00:07]} 42. Qb3 {[%clk 0:00:13]}  Kg7 {[%clk 0:00:03]} 43. Rd7 {[%clk 0:00:12]}  Kh8 {[%clk 0:00:01]} 44. Rxf7 {[%clk 0:00:11]}  Qc5 {[%clk 0:00:01]} 45. Rhf1 {[%clk 0:00:10]}  Bd2 {[%clk 0:00:01]} 46. Rf8+ {[%clk 0:00:10]}  Qxf8 {[%clk 0:00:01]} 47. Rxf8+ {[%clk 0:00:11]}  Kg7 {[%clk 0:00:01]} 48. Qf7# {[%clk 0:00:11]} 1-0


[Site "https://www.chess.com"]